Department family,Entity,Date,Expense type,Expense area,Supplier,Transaction number,Amount
Department of Health,Leicestershire Partnership NHS Trust,04/06/18,Rent,"OSL House (P54, LPT)",CABOT TRUSTEES LTD,048,38990.59
Department of Health,Leicestershire Partnership NHS Trust,04/06/18,Crs_NHS_LT1y -Resus Inventory Supplied.,Balance Sheet Collection,NHS SUPPLY CHAIN (ST1450),1019040603,40182.56
Department of Health,Leicestershire Partnership NHS Trust,04/06/18,WIP Project Not in BS - Transport and Equipment,Work in Progress,NIHON KOHDEN (UK) LTD,95002113,50213.76
Department of Health,Leicestershire Partnership NHS Trust,05/06/18,Unitary Payment,"The Agnes Unit (AKA Assessment and Treatment Centre) (P85, LPT)",ARDEN PARTNERSHIP (LEICESTER),SI0007,110506.45
Department of Health,Leicestershire Partnership NHS Trust,05/06/18,Occupational Health,HR Operations,UHL NHS TRUST (RWE),L0210554,26622.00
Department of Health,Leicestershire Partnership NHS Trust,05/06/18,External Consultancy Fees,CMS Reserves,BLOOM PROC SERV LTD,013178,110400.00
Department of Health,Leicestershire Partnership NHS Trust,05/06/18,Services / Recharges from NHS Trusts,Inter Unit I & E Distribution,UHL NHS TRUST (RWE),L0210560,179992.55
Department of Health,Leicestershire Partnership NHS Trust,06/06/18,CHP Estates Management,Belgrave Health Centre (CHP),COMM HLTH PARTNERSHIPS LTD,0060062152,8660.88
Department of Health,Leicestershire Partnership NHS Trust,06/06/18,CHP Estates Management,Merlyn Vaz Centre (CHP),COMM HLTH PARTNERSHIPS LTD,0060062152,57863.87
Department of Health,Leicestershire Partnership NHS Trust,06/06/18,CHP Estates Management,St Peters Primary Care Centre (CHP),COMM HLTH PARTNERSHIPS LTD,0060062152,12558.05
Department of Health,Leicestershire Partnership NHS Trust,06/06/18,CHP Estates Management,Westcotes Health Centre (CHP),COMM HLTH PARTNERSHIPS LTD,0060062152,11186.76
Department of Health,Leicestershire Partnership NHS Trust,07/06/18,Payroll Deductions -Salary Sacrifice Cars Scheme,Balance Sheet Collection,TUSKER,LPT801-0618,26267.04
Department of Health,Leicestershire Partnership NHS Trust,07/06/18,HIS LPT Costs,HIS,THE PHOENIX PARTNERSHIP,8840,626986.70
Department of Health,Leicestershire Partnership NHS Trust,07/06/18,Network Costs - WAN Maint,HIS Infrastructure,VIRGIN MEDIA BUSINESS,262421-144,48260.70
Department of Health,Leicestershire Partnership NHS Trust,08/06/18,NURSE - BAND 2 - AGENCY,Beechwood Ward,HCL NURSING,MAN27871,486.38
Department of Health,Leicestershire Partnership NHS Trust,08/06/18,Nurse - Band 6 -Agency,City East CMHT MHSOP,HCL NURSING,MAN27871,627.70
Department of Health,Leicestershire Partnership NHS Trust,08/06/18,NURSE - BAND 5 - AGENCY,City ICS,HCL NURSING,MAN27871,7605.49
Department of Health,Leicestershire Partnership NHS Trust,08/06/18,NURSE - BAND 5 - AGENCY,City Planned Care - East,HCL NURSING,MAN27871,14085.11
Department of Health,Leicestershire Partnership NHS Trust,08/06/18,NURSE - BAND 3 - AGENCY,City Planned Care - West,HCL NURSING,MAN27871,1360.43
Department of Health,Leicestershire Partnership NHS Trust,08/06/18,NURSE - BAND 5 - AGENCY,City Planned Care - West,HCL NURSING,MAN27871,6368.77
Department of Health,Leicestershire Partnership NHS Trust,08/06/18,Nurse - Band 6 -Agency,City West CMHT MHSOP,HCL NURSING,MAN27871,1069.88
Department of Health,Leicestershire Partnership NHS Trust,08/06/18,NURSE - BAND 2 - AGENCY,Clarendon Ward,HCL NURSING,MAN27871,239.57
Department of Health,Leicestershire Partnership NHS Trust,08/06/18,NURSE - BAND 5 - AGENCY,Clarendon Ward,HCL NURSING,MAN27871,637.12
Department of Health,Leicestershire Partnership NHS Trust,08/06/18,NURSE - BAND 2 - AGENCY,Coalville Snibston Ward,HCL NURSING,MAN27871,403.80
Department of Health,Leicestershire Partnership NHS Trust,08/06/18,NURSE - BAND 5 - AGENCY,Coalville Snibston Ward,HCL NURSING,MAN27871,293.55
Department of Health,Leicestershire Partnership NHS Trust,08/06/18,NURSE - BAND 2 - AGENCY,Coalville Ward 2,HCL NURSING,MAN27871,356.90
Department of Health,Leicestershire Partnership NHS Trust,08/06/18,NURSE - BAND 2 - AGENCY,Coleman Ward,HCL NURSING,MAN27871,729.09
Department of Health,Leicestershire Partnership NHS Trust,08/06/18,NURSE - BAND 2 - AGENCY,Dalgliesh Ward,HCL NURSING,MAN27871,430.86
Department of Health,Leicestershire Partnership NHS Trust,08/06/18,NURSE - BAND 5 - AGENCY,"East Planned Care - Melton,Syston,Rutland",HCL NURSING,MAN27871,2197.56
Department of Health,Leicestershire Partnership NHS Trust,08/06/18,NURSE - BAND 3 - AGENCY,"East Planned Care - Oadby,Wigston & Harborough",HCL NURSING,MAN27871,784.87
Department of Health,Leicestershire Partnership NHS Trust,08/06/18,NURSE - BAND 5 - AGENCY,Evening Service,HCL NURSING,MAN27871,1166.94
Department of Health,Leicestershire Partnership NHS Trust,08/06/18,NURSE - BAND 2 - AGENCY,Fielding Palmer Nursing,HCL NURSING,MAN27871,358.51
Department of Health,Leicestershire Partnership NHS Trust,08/06/18,NURSE - BAND 5 - AGENCY,Fielding Palmer Nursing,HCL NURSING,MAN27871,4369.76
Department of Health,Leicestershire Partnership NHS Trust,08/06/18,NURSE - BAND 2 - AGENCY,Gwendolen Ward,HCL NURSING,MAN27871,1122.53
Department of Health,Leicestershire Partnership NHS Trust,08/06/18,NURSE - BAND 5 - AGENCY,Gwendolen Ward,HCL NURSING,MAN27871,480.79
Department of Health,Leicestershire Partnership NHS Trust,08/06/18,NURSE - BAND 2 - AGENCY,H&B Comm Hosp East Ward,HCL NURSING,MAN27871,1551.36
Department of Health,Leicestershire Partnership NHS Trust,08/06/18,NURSE - BAND 2 - AGENCY,H&B Comm Hosp North Ward,HCL NURSING,MAN27871,821.02
Department of Health,Leicestershire Partnership NHS Trust,08/06/18,NURSE - BAND 5 - AGENCY,H&B Comm Hosp North Ward,HCL NURSING,MAN27871,502.76
Department of Health,Leicestershire Partnership NHS Trust,08/06/18,NURSE - BAND 2 - AGENCY,Kirby Ward,HCL NURSING,MAN27871,941.63
Department of Health,Leicestershire Partnership NHS Trust,08/06/18,NURSE - BAND 5 - AGENCY,Lough Swithland Ward,HCL NURSING,MAN27871,380.99
Department of Health,Leicestershire Partnership NHS Trust,08/06/18,Nurse - Band 6 -Agency,MHSOP Integrated Care Team,HCL NURSING,MAN27871,836.93
Department of Health,Leicestershire Partnership NHS Trust,08/06/18,NURSE - BAND 5 - AGENCY,North East ICS,HCL NURSING,MAN27871,1791.92
Department of Health,Leicestershire Partnership NHS Trust,08/06/18,NURSE - BAND 5 - AGENCY,South East ICS,HCL NURSING,MAN27871,5277.10
Department of Health,Leicestershire Partnership NHS Trust,08/06/18,NURSE - BAND 2 - AGENCY,St Lukes Stroke Ward,HCL NURSING,MAN27871,604.07
Department of Health,Leicestershire Partnership NHS Trust,08/06/18,NURSE - BAND 5 - AGENCY,St Lukes Stroke Ward,HCL NURSING,MAN27871,392.89
Department of Health,Leicestershire Partnership NHS Trust,08/06/18,NURSE - BAND 5 - AGENCY,St Lukes Ward 3,HCL NURSING,MAN27871,669.77
Department of Health,Leicestershire Partnership NHS Trust,08/06/18,NURSE - BAND 3 - AGENCY,West Planned Care  - Charnwood Hub,HCL NURSING,MAN27871,703.46
Department of Health,Leicestershire Partnership NHS Trust,08/06/18,NURSE - BAND 5 - AGENCY,West Planned Care  - Charnwood Hub,HCL NURSING,MAN27871,5093.09
Department of Health,Leicestershire Partnership NHS Trust,08/06/18,NURSE - BAND 5 - AGENCY,West Planned Care - NWL Hub,HCL NURSING,MAN27871,184.22
Department of Health,Leicestershire Partnership NHS Trust,08/06/18,WIP Project Not in BS - Buildings excl Dwellings,Work in Progress,INTERSERVE CONSTRUCTION LTD,VEM54759,35867.90
Department of Health,Leicestershire Partnership NHS Trust,08/06/18,WIP Project Not in BS - Buildings excl Dwellings,Work in Progress,INTERSERVE CONSTRUCTION LTD,VEM54774,48115.90
Department of Health,Leicestershire Partnership NHS Trust,08/06/18,NURSE - BAND 2 - AGENCY,Beechwood Ward,HCL NURSING,MAN27900,501.54
Department of Health,Leicestershire Partnership NHS Trust,08/06/18,Nurse - Band 6 -Agency,City East CMHT MHSOP,HCL NURSING,MAN27900,836.93
Department of Health,Leicestershire Partnership NHS Trust,08/06/18,NURSE - BAND 5 - AGENCY,City ICS,HCL NURSING,MAN27900,5201.61
Department of Health,Leicestershire Partnership NHS Trust,08/06/18,NURSE - BAND 5 - AGENCY,City Planned Care - East,HCL NURSING,MAN27900,11210.85
Department of Health,Leicestershire Partnership NHS Trust,08/06/18,NURSE - BAND 3 - AGENCY,City Planned Care - West,HCL NURSING,MAN27900,1587.15
Department of Health,Leicestershire Partnership NHS Trust,08/06/18,NURSE - BAND 5 - AGENCY,City Planned Care - West,HCL NURSING,MAN27900,7750.43
Department of Health,Leicestershire Partnership NHS Trust,08/06/18,Nurse - Band 6 -Agency,City West CMHT MHSOP,HCL NURSING,MAN27900,1069.88
Department of Health,Leicestershire Partnership NHS Trust,08/06/18,NURSE - BAND 2 - AGENCY,Clarendon Ward,HCL NURSING,MAN27900,223.60
Department of Health,Leicestershire Partnership NHS Trust,08/06/18,NURSE - BAND 5 - AGENCY,Clarendon Ward,HCL NURSING,MAN27900,337.04
Department of Health,Leicestershire Partnership NHS Trust,08/06/18,NURSE - BAND 2 - AGENCY,Coalville Snibston Ward,HCL NURSING,MAN27900,779.72
Department of Health,Leicestershire Partnership NHS Trust,08/06/18,NURSE - BAND 2 - AGENCY,Coalville Ward 2,HCL NURSING,MAN27900,751.85
Department of Health,Leicestershire Partnership NHS Trust,08/06/18,NURSE - BAND 2 - AGENCY,Coleman Ward,HCL NURSING,MAN27900,90.08
Department of Health,Leicestershire Partnership NHS Trust,08/06/18,NURSE - BAND 5 - AGENCY,"East Planned Care - Melton,Syston,Rutland",HCL NURSING,MAN27900,3606.97
Department of Health,Leicestershire Partnership NHS Trust,08/06/18,NURSE - BAND 3 - AGENCY,"East Planned Care - Oadby,Wigston & Harborough",HCL NURSING,MAN27900,583.76
Department of Health,Leicestershire Partnership NHS Trust,08/06/18,NURSE - BAND 5 - AGENCY,"East Planned Care - Oadby,Wigston & Harborough",HCL NURSING,MAN27900,431.10
Department of Health,Leicestershire Partnership NHS Trust,08/06/18,NURSE - BAND 5 - AGENCY,Evening Service,HCL NURSING,MAN27900,798.12
Department of Health,Leicestershire Partnership NHS Trust,08/06/18,NURSE - BAND 5 - AGENCY,Fielding Palmer Nursing,HCL NURSING,MAN27900,2592.08
Department of Health,Leicestershire Partnership NHS Trust,08/06/18,NURSE - BAND 2 - AGENCY,Gwendolen Ward,HCL NURSING,MAN27900,913.11
Department of Health,Leicestershire Partnership NHS Trust,08/06/18,NURSE - BAND 2 - AGENCY,H&B Comm Hosp East Ward,HCL NURSING,MAN27900,1344.13
Department of Health,Leicestershire Partnership NHS Trust,08/06/18,NURSE - BAND 5 - AGENCY,H&B Comm Hosp East Ward,HCL NURSING,MAN27900,329.81
Department of Health,Leicestershire Partnership NHS Trust,08/06/18,NURSE - BAND 2 - AGENCY,H&B Comm Hosp North Ward,HCL NURSING,MAN27900,685.84
Department of Health,Leicestershire Partnership NHS Trust,08/06/18,NURSE - BAND 5 - AGENCY,H&B Comm Hosp North Ward,HCL NURSING,MAN27900,334.27
Department of Health,Leicestershire Partnership NHS Trust,08/06/18,NURSE - BAND 5 - AGENCY,Lough Swithland Ward,HCL NURSING,MAN27900,426.69
Department of Health,Leicestershire Partnership NHS Trust,08/06/18,Nurse - Band 6 -Agency,MHSOP Integrated Care Team,HCL NURSING,MAN27900,1046.16
Department of Health,Leicestershire Partnership NHS Trust,08/06/18,NURSE - BAND 5 - AGENCY,Non Recurrent 2012/13,HCL NURSING,MAN27900,633.70
Department of Health,Leicestershire Partnership NHS Trust,08/06/18,NURSE - BAND 5 - AGENCY,North East ICS,HCL NURSING,MAN27900,2270.11
Department of Health,Leicestershire Partnership NHS Trust,08/06/18,NURSE - BAND 5 - AGENCY,North West ICS,HCL NURSING,MAN27900,532.35
Department of Health,Leicestershire Partnership NHS Trust,08/06/18,NURSE - BAND 2 - AGENCY,Rutland Ward Nursing,HCL NURSING,MAN27900,144.96
Department of Health,Leicestershire Partnership NHS Trust,08/06/18,NURSE - BAND 5 - AGENCY,South East ICS,HCL NURSING,MAN27900,5225.49
Department of Health,Leicestershire Partnership NHS Trust,08/06/18,NURSE - BAND 5 - AGENCY,South West ICS,HCL NURSING,MAN27900,563.62
Department of Health,Leicestershire Partnership NHS Trust,08/06/18,NURSE - BAND 2 - AGENCY,St Lukes Stroke Ward,HCL NURSING,MAN27900,211.93
Department of Health,Leicestershire Partnership NHS Trust,08/06/18,NURSE - BAND 5 - AGENCY,St Lukes Stroke Ward,HCL NURSING,MAN27900,426.69
Department of Health,Leicestershire Partnership NHS Trust,08/06/18,NURSE - BAND 2 - AGENCY,St Lukes Ward 3,HCL NURSING,MAN27900,489.88
Department of Health,Leicestershire Partnership NHS Trust,08/06/18,NURSE - BAND 5 - AGENCY,St Lukes Ward 3,HCL NURSING,MAN27900,819.58
Department of Health,Leicestershire Partnership NHS Trust,08/06/18,NURSE - BAND 2 - AGENCY,Welford Ward,HCL NURSING,MAN27900,519.85
Department of Health,Leicestershire Partnership NHS Trust,08/06/18,NURSE - BAND 3 - AGENCY,West Planned Care  - Charnwood Hub,HCL NURSING,MAN27900,365.31
Department of Health,Leicestershire Partnership NHS Trust,08/06/18,NURSE - BAND 5 - AGENCY,West Planned Care  - Charnwood Hub,HCL NURSING,MAN27900,3742.66
Department of Health,Leicestershire Partnership NHS Trust,08/06/18,Water & Sewerage Charges,"Beaumont Leys Health Centre (P94, LPT)",WATER PLUS,0865005329/INV01345057,1006.93
Department of Health,Leicestershire Partnership NHS Trust,08/06/18,Water & Sewerage Charges,Bridge Park Road (Unit C18) (LPT),WATER PLUS,0865005329/INV01345057,135.04
Department of Health,Leicestershire Partnership NHS Trust,08/06/18,Water & Sewerage Charges,"Coalville Community Hospital (P138, LPT)",WATER PLUS,0865005329/INV01345057,1651.23
Department of Health,Leicestershire Partnership NHS Trust,08/06/18,Water & Sewerage Charges,"Loughborough Hospital (P136, LPT)",WATER PLUS,0865005329/INV01345057,20752.55
Department of Health,Leicestershire Partnership NHS Trust,08/06/18,Water & Sewerage Charges,"Paget House (P55, LPT)",WATER PLUS,0865005329/INV01345057,341.36
Department of Health,Leicestershire Partnership NHS Trust,08/06/18,Water & Sewerage Charges,"Prince Philip House (P96, LPT)",WATER PLUS,0865005329/INV01345057,1104.38
Department of Health,Leicestershire Partnership NHS Trust,08/06/18,Water & Sewerage Charges,"Rubicon Close 3 (P56, LPT)",WATER PLUS,0865005329/INV01345057,507.85
Department of Health,Leicestershire Partnership NHS Trust,08/06/18,Water & Sewerage Charges,"The Grange 1 (P4, LPT)",WATER PLUS,0865005329/INV01345057,485.57
Department of Health,Leicestershire Partnership NHS Trust,08/06/18,Water & Sewerage Charges,"The Grange 2 (P41, LPT)",WATER PLUS,0865005329/INV01345057,470.76
Department of Health,Leicestershire Partnership NHS Trust,08/06/18,Water & Sewerage Charges,"The Willows - Cordelia Close (P22, LPT)",WATER PLUS,0865005329/INV01345057,1433.54
Department of Health,Leicestershire Partnership NHS Trust,11/06/18,Crs_NHS_LT1y -Resus Inventory Supplied.,Balance Sheet Collection,NHS SUPPLY CHAIN (ST1450),1019045034,46700.64
Department of Health,Leicestershire Partnership NHS Trust,11/06/18,WIP Project Not in BS - Buildings excl Dwellings,Work in Progress,INTERSERVE CONSTRUCTION LTD,VEM54772,179953.32
Department of Health,Leicestershire Partnership NHS Trust,12/06/18,Cytogenetic Testing,Children Services Medical,UHL NHS TRUST (RWE),L0210813,25016.88
Department of Health,Leicestershire Partnership NHS Trust,13/06/18,Mobile Telephone Rental / Calls,Specific Unit Budget Reserves,VODAFONE CORPORATE LTD,87806964,42574.50
Department of Health,Leicestershire Partnership NHS Trust,18/06/18,Insurance Costs,Chief Executives Office,NHS LITIGATION AUTHORITY,SICX/00131444,85763.50
Department of Health,Leicestershire Partnership NHS Trust,18/06/18,Crs_NHS_LT1y -Resus Inventory Supplied.,Balance Sheet Collection,NHS SUPPLY CHAIN (ST1450),1019050576,45653.51
Department of Health,Leicestershire Partnership NHS Trust,19/06/18,Contract : Accomodation,Out of County Income - Inpateints Project,TURNING POINT,SI-TPS-00018277,49507.67
Department of Health,Leicestershire Partnership NHS Trust,19/06/18,NURSE - BAND 5 - AGENCY,Acacia (Willows),HCL NURSING,MAN27899,320.14
Department of Health,Leicestershire Partnership NHS Trust,19/06/18,Nurse - Band 6 -Agency,Adult City East CMHT - Merlyn Vaz,HCL NURSING,MAN27899,4241.56
Department of Health,Leicestershire Partnership NHS Trust,19/06/18,NURSE - BAND 5 - AGENCY,Agnes Unit Management,HCL NURSING,MAN27899,346.55
Department of Health,Leicestershire Partnership NHS Trust,19/06/18,NURSE - BAND 2 - AGENCY,Aston Ward (Bradgate Unit),HCL NURSING,MAN27899,604.83
Department of Health,Leicestershire Partnership NHS Trust,19/06/18,NURSE - BAND 5 - AGENCY,Aston Ward (Bradgate Unit),HCL NURSING,MAN27899,4103.00
Department of Health,Leicestershire Partnership NHS Trust,19/06/18,NURSE - BAND 5 - AGENCY,Beaumont Ward - Bradgate Unit,HCL NURSING,MAN27899,1649.83
Department of Health,Leicestershire Partnership NHS Trust,19/06/18,NURSE - BAND 2 - AGENCY,Belvoir Psychiatric Intensive Care Unit,HCL NURSING,MAN27899,3221.49
Department of Health,Leicestershire Partnership NHS Trust,19/06/18,NURSE - BAND 5 - AGENCY,Belvoir Psychiatric Intensive Care Unit,HCL NURSING,MAN27899,2263.93
Department of Health,Leicestershire Partnership NHS Trust,19/06/18,NURSE - BAND 2 - AGENCY,Cedar (Willows),HCL NURSING,MAN27899,336.82
Department of Health,Leicestershire Partnership NHS Trust,19/06/18,Nurse - Band 6 -Agency,Crisis Resolution,HCL NURSING,MAN27899,1566.50
Department of Health,Leicestershire Partnership NHS Trust,19/06/18,Nurse - Band 6 -Agency,Deliberate Self Harm,HCL NURSING,MAN27899,949.61
Department of Health,Leicestershire Partnership NHS Trust,19/06/18,NURSE - BAND 2 - AGENCY,Griffin Ward (HPC),HCL NURSING,MAN27899,1239.62
Department of Health,Leicestershire Partnership NHS Trust,19/06/18,NURSE - BAND 5 - AGENCY,Griffin Ward (HPC),HCL NURSING,MAN27899,2598.68
Department of Health,Leicestershire Partnership NHS Trust,19/06/18,NURSE - BAND 2 - AGENCY,Heather Ward,HCL NURSING,MAN27899,837.36
Department of Health,Leicestershire Partnership NHS Trust,19/06/18,NURSE - BAND 5 - AGENCY,Heather Ward,HCL NURSING,MAN27899,3072.44
Department of Health,Leicestershire Partnership NHS Trust,19/06/18,NURSE - BAND 5 - AGENCY,Mill Lodge,HCL NURSING,MAN27899,549.92
Department of Health,Leicestershire Partnership NHS Trust,19/06/18,NURSE - BAND 2 - AGENCY,Phoenix Ward (HPC),HCL NURSING,MAN27899,524.14
Department of Health,Leicestershire Partnership NHS Trust,19/06/18,NURSE - BAND 2 - AGENCY,Place Of Safety Assessment Unit,HCL NURSING,MAN27899,180.21
Department of Health,Leicestershire Partnership NHS Trust,19/06/18,NURSE - BAND 2 - AGENCY,Sycamore (Willows),HCL NURSING,MAN27899,336.82
Department of Health,Leicestershire Partnership NHS Trust,19/06/18,NURSE - BAND 2 - AGENCY,Thornton Ward - Bradgate Unit,HCL NURSING,MAN27899,163.71
Department of Health,Leicestershire Partnership NHS Trust,19/06/18,NURSE - BAND 5 - AGENCY,Thornton Ward - Bradgate Unit,HCL NURSING,MAN27899,320.14
Department of Health,Leicestershire Partnership NHS Trust,19/06/18,NURSE - BAND 2 - AGENCY,Watermead Ward (Bradgate Unit),HCL NURSING,MAN27899,593.77
Department of Health,Leicestershire Partnership NHS Trust,19/06/18,NURSE - BAND 5 - AGENCY,Watermead Ward (Bradgate Unit),HCL NURSING,MAN27899,721.94
Department of Health,Leicestershire Partnership NHS Trust,19/06/18,NURSE - BAND 2 - AGENCY,AGNES UNIT POD 2,HCL NURSING,MAN27870,116.19
Department of Health,Leicestershire Partnership NHS Trust,19/06/18,Nurse - Band 6 -Agency,Adult City East CMHT - Merlyn Vaz,HCL NURSING,MAN27870,855.90
Department of Health,Leicestershire Partnership NHS Trust,19/06/18,Nurse - Band 6 -Agency,Adult County Charnwood CMHT - Loughborough Base,HCL NURSING,MAN27870,1935.56
Department of Health,Leicestershire Partnership NHS Trust,19/06/18,Nurse - Band 6 -Agency,Adult County North West Leicestershire CMHT,HCL NURSING,MAN27870,641.93
Department of Health,Leicestershire Partnership NHS Trust,19/06/18,NURSE - BAND 5 - AGENCY,Agnes Unit Management,HCL NURSING,MAN27870,346.51
Department of Health,Leicestershire Partnership NHS Trust,19/06/18,NURSE - BAND 2 - AGENCY,Ashby Ward (Bradgate Unit),HCL NURSING,MAN27870,180.13
Department of Health,Leicestershire Partnership NHS Trust,19/06/18,NURSE - BAND 2 - AGENCY,Aston Ward (Bradgate Unit),HCL NURSING,MAN27870,465.66
Department of Health,Leicestershire Partnership NHS Trust,19/06/18,NURSE - BAND 5 - AGENCY,Aston Ward (Bradgate Unit),HCL NURSING,MAN27870,4044.46
Department of Health,Leicestershire Partnership NHS Trust,19/06/18,NURSE - BAND 2 - AGENCY,Beaumont Ward - Bradgate Unit,HCL NURSING,MAN27870,400.59
Department of Health,Leicestershire Partnership NHS Trust,19/06/18,NURSE - BAND 5 - AGENCY,Beaumont Ward - Bradgate Unit,HCL NURSING,MAN27870,819.36
Department of Health,Leicestershire Partnership NHS Trust,19/06/18,NURSE - BAND 2 - AGENCY,Belvoir Psychiatric Intensive Care Unit,HCL NURSING,MAN27870,847.31
Department of Health,Leicestershire Partnership NHS Trust,19/06/18,NURSE - BAND 5 - AGENCY,Belvoir Psychiatric Intensive Care Unit,HCL NURSING,MAN27870,1222.14
Department of Health,Leicestershire Partnership NHS Trust,19/06/18,NURSE - BAND 2 - AGENCY,Bosworth Ward - Bradgate Unit,HCL NURSING,MAN27870,196.95
Department of Health,Leicestershire Partnership NHS Trust,19/06/18,NURSE - BAND 5 - AGENCY,Bosworth Ward - Bradgate Unit,HCL NURSING,MAN27870,669.77
Department of Health,Leicestershire Partnership NHS Trust,19/06/18,Nurse - Band 6 -Agency,Crisis Resolution,HCL NURSING,MAN27870,10942.01
Department of Health,Leicestershire Partnership NHS Trust,19/06/18,NURSE - BAND 2 - AGENCY,Griffin Ward (HPC),HCL NURSING,MAN27870,912.02
Department of Health,Leicestershire Partnership NHS Trust,19/06/18,NURSE - BAND 5 - AGENCY,Griffin Ward (HPC),HCL NURSING,MAN27870,1541.06
Department of Health,Leicestershire Partnership NHS Trust,19/06/18,NURSE - BAND 2 - AGENCY,Heather Ward,HCL NURSING,MAN27870,1154.39
Department of Health,Leicestershire Partnership NHS Trust,19/06/18,NURSE - BAND 5 - AGENCY,Heather Ward,HCL NURSING,MAN27870,1699.78
Department of Health,Leicestershire Partnership NHS Trust,19/06/18,NURSE - BAND 2 - AGENCY,Phoenix Ward (HPC),HCL NURSING,MAN27870,221.26
Department of Health,Leicestershire Partnership NHS Trust,19/06/18,NURSE - BAND 2 - AGENCY,Stewart House,HCL NURSING,MAN27870,196.95
Department of Health,Leicestershire Partnership NHS Trust,19/06/18,NURSE - BAND 2 - AGENCY,Watermead Ward (Bradgate Unit),HCL NURSING,MAN27870,560.42
Department of Health,Leicestershire Partnership NHS Trust,19/06/18,NURSE - BAND 5 - AGENCY,Watermead Ward (Bradgate Unit),HCL NURSING,MAN27870,1383.94
Department of Health,Leicestershire Partnership NHS Trust,20/06/18,Payroll Deductions - Kiddi Vouchers,Balance Sheet Collection,WIDER PLAN LTD,4302645,46613.84
Department of Health,Leicestershire Partnership NHS Trust,20/06/18,NURSE - BAND 5 - AGENCY,AGNES UNIT POD 1,HCL NURSING,MAN27972,366.83
Department of Health,Leicestershire Partnership NHS Trust,20/06/18,Nurse - Band 6 -Agency,Adult City East CMHT - Merlyn Vaz,HCL NURSING,MAN27972,2844.40
Department of Health,Leicestershire Partnership NHS Trust,20/06/18,Nurse - Band 6 -Agency,Adult County Charnwood CMHT - Loughborough Base,HCL NURSING,MAN27972,1952.49
Department of Health,Leicestershire Partnership NHS Trust,20/06/18,Nurse - Band 6 -Agency,Adult County North West Leicestershire CMHT,HCL NURSING,MAN27972,2054.21
Department of Health,Leicestershire Partnership NHS Trust,20/06/18,NURSE - BAND 2 - AGENCY,Ashby Ward (Bradgate Unit),HCL NURSING,MAN27972,378.35
Department of Health,Leicestershire Partnership NHS Trust,20/06/18,NURSE - BAND 2 - AGENCY,Aston Ward (Bradgate Unit),HCL NURSING,MAN27972,488.06
Department of Health,Leicestershire Partnership NHS Trust,20/06/18,NURSE - BAND 5 - AGENCY,Aston Ward (Bradgate Unit),HCL NURSING,MAN27972,4159.62
Department of Health,Leicestershire Partnership NHS Trust,20/06/18,NURSE - BAND 2 - AGENCY,Beaumont Ward - Bradgate Unit,HCL NURSING,MAN27972,332.23
Department of Health,Leicestershire Partnership NHS Trust,20/06/18,NURSE - BAND 5 - AGENCY,Beaumont Ward - Bradgate Unit,HCL NURSING,MAN27972,1618.37
Department of Health,Leicestershire Partnership NHS Trust,20/06/18,NURSE - BAND 2 - AGENCY,Belvoir Psychiatric Intensive Care Unit,HCL NURSING,MAN27972,2191.86
Department of Health,Leicestershire Partnership NHS Trust,20/06/18,NURSE - BAND 5 - AGENCY,Belvoir Psychiatric Intensive Care Unit,HCL NURSING,MAN27972,748.61
Department of Health,Leicestershire Partnership NHS Trust,20/06/18,NURSE - BAND 2 - AGENCY,Bosworth Ward - Bradgate Unit,HCL NURSING,MAN27972,236.12
Department of Health,Leicestershire Partnership NHS Trust,20/06/18,NURSE - BAND 5 - AGENCY,Bosworth Ward - Bradgate Unit,HCL NURSING,MAN27972,533.48
Department of Health,Leicestershire Partnership NHS Trust,20/06/18,NURSE - BAND 5 - AGENCY,Cedar (Willows),HCL NURSING,MAN27972,329.81
Department of Health,Leicestershire Partnership NHS Trust,20/06/18,Nurse - Band 6 -Agency,Crisis Resolution,HCL NURSING,MAN27972,7618.79
Department of Health,Leicestershire Partnership NHS Trust,20/06/18,Nurse - Band 6 -Agency,Deliberate Self Harm,HCL NURSING,MAN27972,454.01
Department of Health,Leicestershire Partnership NHS Trust,20/06/18,NURSE - BAND 2 - AGENCY,Griffin Ward (HPC),HCL NURSING,MAN27972,573.04
Department of Health,Leicestershire Partnership NHS Trust,20/06/18,NURSE - BAND 5 - AGENCY,Griffin Ward (HPC),HCL NURSING,MAN27972,2842.65
Department of Health,Leicestershire Partnership NHS Trust,20/06/18,NURSE - BAND 2 - AGENCY,Heather Ward,HCL NURSING,MAN27972,486.03
Department of Health,Leicestershire Partnership NHS Trust,20/06/18,NURSE - BAND 5 - AGENCY,Heather Ward,HCL NURSING,MAN27972,2349.74
Department of Health,Leicestershire Partnership NHS Trust,20/06/18,NURSE - BAND 5 - AGENCY,Mill Lodge,HCL NURSING,MAN27972,498.83
Department of Health,Leicestershire Partnership NHS Trust,20/06/18,NURSE - BAND 2 - AGENCY,Phoenix Ward (HPC),HCL NURSING,MAN27972,387.13
Department of Health,Leicestershire Partnership NHS Trust,20/06/18,NURSE - BAND 5 - AGENCY,Phoenix Ward (HPC),HCL NURSING,MAN27972,613.46
Department of Health,Leicestershire Partnership NHS Trust,20/06/18,NURSE - BAND 2 - AGENCY,Sycamore (Willows),HCL NURSING,MAN27972,168.41
Department of Health,Leicestershire Partnership NHS Trust,20/06/18,NURSE - BAND 5 - AGENCY,Thornton Ward - Bradgate Unit,HCL NURSING,MAN27972,392.89
Department of Health,Leicestershire Partnership NHS Trust,20/06/18,NURSE - BAND 2 - AGENCY,Watermead Ward (Bradgate Unit),HCL NURSING,MAN27972,691.96
Department of Health,Leicestershire Partnership NHS Trust,20/06/18,NURSE - BAND 5 - AGENCY,Watermead Ward (Bradgate Unit),HCL NURSING,MAN27972,637.12
Department of Health,Leicestershire Partnership NHS Trust,20/06/18,CHP Estates Management,Belgrave Health Centre (CHP),COMM HLTH PARTNERSHIPS LTD,0060072161,9041.24
Department of Health,Leicestershire Partnership NHS Trust,20/06/18,CHP Estates Management,Merlyn Vaz Centre (CHP),COMM HLTH PARTNERSHIPS LTD,0060072161,60957.31
Department of Health,Leicestershire Partnership NHS Trust,20/06/18,CHP Estates Management,Westcotes Health Centre (CHP),COMM HLTH PARTNERSHIPS LTD,0060072161,11853.09
Department of Health,Leicestershire Partnership NHS Trust,21/06/18,Rent,Bridge Park Plaza - First Floor (LPT),RAYNSWAY PROPERTIES LTD,46574,70816.80
Department of Health,Leicestershire Partnership NHS Trust,25/06/18,Landline Telephone Rental / Calls,"Beaumont Leys Health Centre (P94, LPT)",VIRGIN MEDIA BUSINESS,853083001/004/0618,518.98
Department of Health,Leicestershire Partnership NHS Trust,25/06/18,Landline Telephone Rental / Calls,Belgrave Health Centre (CHP),VIRGIN MEDIA BUSINESS,853083001/004/0618,410.92
Department of Health,Leicestershire Partnership NHS Trust,25/06/18,Landline Telephone Rental / Calls,"Bennion Centre (including Forest Grange Day Unit) (P8, LPT)",VIRGIN MEDIA BUSINESS,853083001/004/0618,7.80
Department of Health,Leicestershire Partnership NHS Trust,25/06/18,Landline Telephone Rental / Calls,"Bradgate Unit (including Glenvale day Unit) (P7, LPT)",VIRGIN MEDIA BUSINESS,853083001/004/0618,7253.59
Department of Health,Leicestershire Partnership NHS Trust,25/06/18,Landline Telephone Rental / Calls,Braunstone Health and Social Care Centre (Part) (PROPCO),VIRGIN MEDIA BUSINESS,853083001/004/0618,1492.79
Department of Health,Leicestershire Partnership NHS Trust,25/06/18,Landline Telephone Rental / Calls,Bridge Park Plaza - First Floor (LPT),VIRGIN MEDIA BUSINESS,853083001/004/0618,3998.40
Department of Health,Leicestershire Partnership NHS Trust,25/06/18,Landline Telephone Rental / Calls,"Coalville Community Hospital (P138, LPT)",VIRGIN MEDIA BUSINESS,853083001/004/0618,1657.96
Department of Health,Leicestershire Partnership NHS Trust,25/06/18,Landline Telephone Rental / Calls,"Coalville Health Centre (P121, LPT)",VIRGIN MEDIA BUSINESS,853083001/004/0618,443.05
Department of Health,Leicestershire Partnership NHS Trust,25/06/18,Landline Telephone Rental / Calls,County Hall,VIRGIN MEDIA BUSINESS,853083001/004/0618,1420.97
Department of Health,Leicestershire Partnership NHS Trust,25/06/18,Landline Telephone Rental / Calls,Estates & Facilities Central,VIRGIN MEDIA BUSINESS,853083001/004/0618,4612.23
Department of Health,Leicestershire Partnership NHS Trust,25/06/18,Landline Telephone Rental / Calls,"Evington Centre (P6, LPT)",VIRGIN MEDIA BUSINESS,853083001/004/0618,1725.67
Department of Health,Leicestershire Partnership NHS Trust,25/06/18,Landline Telephone Rental / Calls,HIS,VIRGIN MEDIA BUSINESS,853083001/004/0618,2665.78
Department of Health,Leicestershire Partnership NHS Trust,25/06/18,Landline Telephone Rental / Calls,"Hawthorne Centre - Coalville (P14, LPT)",VIRGIN MEDIA BUSINESS,853083001/004/0618,644.63
Department of Health,Leicestershire Partnership NHS Trust,25/06/18,Landline Telephone Rental / Calls,Hinckley & District Hospital (PROPCO),VIRGIN MEDIA BUSINESS,853083001/004/0618,1460.52
Department of Health,Leicestershire Partnership NHS Trust,25/06/18,Landline Telephone Rental / Calls,"Hinckley and Bosworth Community Hospital (Sunnyside) (P133, LPT)",VIRGIN MEDIA BUSINESS,853083001/004/0618,1125.85
Department of Health,Leicestershire Partnership NHS Trust,25/06/18,Landline Telephone Rental / Calls,Hood Park Leisure Centre Clinic,VIRGIN MEDIA BUSINESS,853083001/004/0618,72.10
Department of Health,Leicestershire Partnership NHS Trust,25/06/18,Landline Telephone Rental / Calls,"Hynca Lodge (P33, LPT)",VIRGIN MEDIA BUSINESS,853083001/004/0618,414.14
Department of Health,Leicestershire Partnership NHS Trust,25/06/18,Landline Telephone Rental / Calls,"Legion House, Ashby",VIRGIN MEDIA BUSINESS,853083001/004/0618,67.66
Department of Health,Leicestershire Partnership NHS Trust,25/06/18,Landline Telephone Rental / Calls,Loughborough Health Centre (PROPCO),VIRGIN MEDIA BUSINESS,853083001/004/0618,8.67
Department of Health,Leicestershire Partnership NHS Trust,25/06/18,Landline Telephone Rental / Calls,"Loughborough Hospital (P136, LPT)",VIRGIN MEDIA BUSINESS,853083001/004/0618,4408.97
Department of Health,Leicestershire Partnership NHS Trust,25/06/18,Landline Telephone Rental / Calls,Mawson House (LPT),VIRGIN MEDIA BUSINESS,853083001/004/0618,463.06
Department of Health,Leicestershire Partnership NHS Trust,25/06/18,Landline Telephone Rental / Calls,Melbourne Centre (Pt Grnd flr) (PROPCO),VIRGIN MEDIA BUSINESS,853083001/004/0618,6.50
Department of Health,Leicestershire Partnership NHS Trust,25/06/18,Landline Telephone Rental / Calls,Melton Mowbray Hospital (previously St. Mary's) (PROPCO),VIRGIN MEDIA BUSINESS,853083001/004/0618,2920.13
Department of Health,Leicestershire Partnership NHS Trust,25/06/18,Landline Telephone Rental / Calls,Merlyn Vaz Centre (CHP),VIRGIN MEDIA BUSINESS,853083001/004/0618,2067.13
Department of Health,Leicestershire Partnership NHS Trust,25/06/18,Landline Telephone Rental / Calls,"Mett Centre (P49, LPT)",VIRGIN MEDIA BUSINESS,853083001/004/0618,97.34
Department of Health,Leicestershire Partnership NHS Trust,25/06/18,Landline Telephone Rental / Calls,NSPCC Training Cente,VIRGIN MEDIA BUSINESS,853083001/004/0618,173.02
Department of Health,Leicestershire Partnership NHS Trust,25/06/18,Landline Telephone Rental / Calls,New Parks Health Centre (PROPCO),VIRGIN MEDIA BUSINESS,853083001/004/0618,2178.87
Department of Health,Leicestershire Partnership NHS Trust,25/06/18,Landline Telephone Rental / Calls,"OSL House (P54, LPT)",VIRGIN MEDIA BUSINESS,853083001/004/0618,3766.42
Department of Health,Leicestershire Partnership NHS Trust,25/06/18,Landline Telephone Rental / Calls,"Orchard Resource Centre (P15, LPT)",VIRGIN MEDIA BUSINESS,853083001/004/0618,532.67
Department of Health,Leicestershire Partnership NHS Trust,25/06/18,Landline Telephone Rental / Calls,Pasley Road Health Centre (PROPCO),VIRGIN MEDIA BUSINESS,853083001/004/0618,288.16
Department of Health,Leicestershire Partnership NHS Trust,25/06/18,Landline Telephone Rental / Calls,"Prince Philip House (P96, LPT)",VIRGIN MEDIA BUSINESS,853083001/004/0618,2210.61
Department of Health,Leicestershire Partnership NHS Trust,25/06/18,Landline Telephone Rental / Calls,Rushey Mead Health Centre (PROPCO),VIRGIN MEDIA BUSINESS,853083001/004/0618,263.59
Department of Health,Leicestershire Partnership NHS Trust,25/06/18,Landline Telephone Rental / Calls,"Rutland Memorial Hospital (P134, LPT)",VIRGIN MEDIA BUSINESS,853083001/004/0618,290.21
Department of Health,Leicestershire Partnership NHS Trust,25/06/18,Landline Telephone Rental / Calls,"Shepshed Health Centre (P123, LPT)",VIRGIN MEDIA BUSINESS,853083001/004/0618,18.78
Department of Health,Leicestershire Partnership NHS Trust,25/06/18,Landline Telephone Rental / Calls,"Springfield Road Health Centre (P92, LPT)",VIRGIN MEDIA BUSINESS,853083001/004/0618,468.62
Department of Health,Leicestershire Partnership NHS Trust,25/06/18,Landline Telephone Rental / Calls,St Johns House (1st Floor) (PROPCO),VIRGIN MEDIA BUSINESS,853083001/004/0618,1534.56
Department of Health,Leicestershire Partnership NHS Trust,25/06/18,Landline Telephone Rental / Calls,St Peters Primary Care Centre (CHP),VIRGIN MEDIA BUSINESS,853083001/004/0618,2814.85
Department of Health,Leicestershire Partnership NHS Trust,25/06/18,Landline Telephone Rental / Calls,"Stewart House (P61, LPT)",VIRGIN MEDIA BUSINESS,853083001/004/0618,49.80
Department of Health,Leicestershire Partnership NHS Trust,25/06/18,Landline Telephone Rental / Calls,"Swithland House - London Road 352 (P44, LPT)",VIRGIN MEDIA BUSINESS,853083001/004/0618,404.30
Department of Health,Leicestershire Partnership NHS Trust,25/06/18,Landline Telephone Rental / Calls,"The Cedars (P19, LPT)",VIRGIN MEDIA BUSINESS,853083001/004/0618,706.56
Department of Health,Leicestershire Partnership NHS Trust,25/06/18,Landline Telephone Rental / Calls,"The Willows - Cordelia Close (P22, LPT)",VIRGIN MEDIA BUSINESS,853083001/004/0618,550.56
Department of Health,Leicestershire Partnership NHS Trust,25/06/18,Landline Telephone Rental / Calls,Uppingham Road Health Centre (PROPCO),VIRGIN MEDIA BUSINESS,853083001/004/0618,261.46
Department of Health,Leicestershire Partnership NHS Trust,25/06/18,Landline Telephone Rental / Calls,"Valentine Centre (P3, LPT)",VIRGIN MEDIA BUSINESS,853083001/004/0618,1780.12
Department of Health,Leicestershire Partnership NHS Trust,25/06/18,Landline Telephone Rental / Calls,Warren Park Way 25 (PROPCO),VIRGIN MEDIA BUSINESS,853083001/004/0618,960.71
Department of Health,Leicestershire Partnership NHS Trust,25/06/18,Landline Telephone Rental / Calls,"Westcotes Group -Westcotes House (P78, LPT)",VIRGIN MEDIA BUSINESS,853083001/004/0618,1426.53
Department of Health,Leicestershire Partnership NHS Trust,25/06/18,Landline Telephone Rental / Calls,Westcotes Health Centre (CHP),VIRGIN MEDIA BUSINESS,853083001/004/0618,771.54
Department of Health,Leicestershire Partnership NHS Trust,25/06/18,Landline Telephone Rental / Calls,"Winstanley Drive Health Centre (P8, LPT)",VIRGIN MEDIA BUSINESS,853083001/004/0618,461.76
Department of Health,Leicestershire Partnership NHS Trust,25/06/18,Crs_NHS_LT1y -Resus Inventory Supplied.,Balance Sheet Collection,NHS SUPPLY CHAIN (ST1450),1019056562,41902.61
Department of Health,Leicestershire Partnership NHS Trust,25/06/18,Internal Printing (machines and ink),Unallocated Budgets,LEXMARK INTERNATIONAL LTD,900650004449,31460.48
Department of Health,Leicestershire Partnership NHS Trust,25/06/18,FP10'S,Adult City Central CMHT - St Peters,NHS BUS SERVICES AUTHORITY,1000055984,280.54
Department of Health,Leicestershire Partnership NHS Trust,25/06/18,FP10'S,Adult City East CMHT - St Peters,NHS BUS SERVICES AUTHORITY,1000055984,10847.39
Department of Health,Leicestershire Partnership NHS Trust,25/06/18,FP10'S,Adult County Drugs,NHS BUS SERVICES AUTHORITY,1000055984,28240.64
Department of Health,Leicestershire Partnership NHS Trust,25/06/18,FP10'S,CAMHS County Outpatients,NHS BUS SERVICES AUTHORITY,1000055984,15335.97
Department of Health,Leicestershire Partnership NHS Trust,25/06/18,FP10'S,Children Services Medical,NHS BUS SERVICES AUTHORITY,1000055984,6358.82
Department of Health,Leicestershire Partnership NHS Trust,25/06/18,FP10'S,Dementia Related Drugs and Investigations,NHS BUS SERVICES AUTHORITY,1000055984,7387.47
Department of Health,Leicestershire Partnership NHS Trust,25/06/18,FP10'S,Eating Disorders Outpatient Service,NHS BUS SERVICES AUTHORITY,1000055984,935.12
Department of Health,Leicestershire Partnership NHS Trust,25/06/18,FP10'S,Leicestershire Psych-oncology Service,NHS BUS SERVICES AUTHORITY,1000055984,374.05
Department of Health,Leicestershire Partnership NHS Trust,25/06/18,FP10'S,PIER Team - Early Intervention Services,NHS BUS SERVICES AUTHORITY,1000055984,18047.83
Department of Health,Leicestershire Partnership NHS Trust,25/06/18,FP10'S,Pharmacy,NHS BUS SERVICES AUTHORITY,1000055984,1122.14
Department of Health,Leicestershire Partnership NHS Trust,25/06/18,FP10'S,Snr Med Staff (Inc Med Reps),NHS BUS SERVICES AUTHORITY,1000055984,4582.09
Department of Health,Leicestershire Partnership NHS Trust,25/06/18,Nurse - Band 6 -Agency,Adult City East CMHT - Merlyn Vaz,HCL NURSING,MAN28037,920.62
Department of Health,Leicestershire Partnership NHS Trust,25/06/18,Nurse - Band 6 -Agency,Adult County Charnwood CMHT - Loughborough Base,HCL NURSING,MAN28037,1046.16
Department of Health,Leicestershire Partnership NHS Trust,25/06/18,Nurse - Band 6 -Agency,Adult County North West Leicestershire CMHT,HCL NURSING,MAN28037,855.90
Department of Health,Leicestershire Partnership NHS Trust,25/06/18,NURSE - BAND 2 - AGENCY,Ashby Ward (Bradgate Unit),HCL NURSING,MAN28037,427.74
Department of Health,Leicestershire Partnership NHS Trust,25/06/18,NURSE - BAND 2 - AGENCY,Aston Ward (Bradgate Unit),HCL NURSING,MAN28037,297.37
Department of Health,Leicestershire Partnership NHS Trust,25/06/18,NURSE - BAND 5 - AGENCY,Aston Ward (Bradgate Unit),HCL NURSING,MAN28037,4084.24
Department of Health,Leicestershire Partnership NHS Trust,25/06/18,NURSE - BAND 2 - AGENCY,Beaumont Ward - Bradgate Unit,HCL NURSING,MAN28037,113.85
Department of Health,Leicestershire Partnership NHS Trust,25/06/18,NURSE - BAND 5 - AGENCY,Beaumont Ward - Bradgate Unit,HCL NURSING,MAN28037,1103.96
Department of Health,Leicestershire Partnership NHS Trust,25/06/18,NURSE - BAND 2 - AGENCY,Belvoir Psychiatric Intensive Care Unit,HCL NURSING,MAN28037,1055.53
Department of Health,Leicestershire Partnership NHS Trust,25/06/18,NURSE - BAND 5 - AGENCY,Belvoir Psychiatric Intensive Care Unit,HCL NURSING,MAN28037,732.84
Department of Health,Leicestershire Partnership NHS Trust,25/06/18,NURSE - BAND 2 - AGENCY,Bosworth Ward - Bradgate Unit,HCL NURSING,MAN28037,223.60
Department of Health,Leicestershire Partnership NHS Trust,25/06/18,NURSE - BAND 5 - AGENCY,Bosworth Ward - Bradgate Unit,HCL NURSING,MAN28037,704.02
Department of Health,Leicestershire Partnership NHS Trust,25/06/18,Nurse - Band 6 -Agency,Crisis Resolution,HCL NURSING,MAN28037,5463.97
Department of Health,Leicestershire Partnership NHS Trust,25/06/18,NURSE - BAND 5 - AGENCY,Griffin Ward (HPC),HCL NURSING,MAN28037,2176.22
Department of Health,Leicestershire Partnership NHS Trust,25/06/18,NURSE - BAND 2 - AGENCY,Heather Ward,HCL NURSING,MAN28037,482.07
Department of Health,Leicestershire Partnership NHS Trust,25/06/18,NURSE - BAND 5 - AGENCY,Heather Ward,HCL NURSING,MAN28037,1321.96
Department of Health,Leicestershire Partnership NHS Trust,25/06/18,NURSE - BAND 2 - AGENCY,Maple Ward,HCL NURSING,MAN28037,168.41
Department of Health,Leicestershire Partnership NHS Trust,25/06/18,NURSE - BAND 5 - AGENCY,Maple Ward,HCL NURSING,MAN28037,659.63
Department of Health,Leicestershire Partnership NHS Trust,25/06/18,NURSE - BAND 5 - AGENCY,Mill Lodge,HCL NURSING,MAN28037,321.98
Department of Health,Leicestershire Partnership NHS Trust,25/06/18,NURSE - BAND 2 - AGENCY,Phoenix Ward (HPC),HCL NURSING,MAN28037,661.65
Department of Health,Leicestershire Partnership NHS Trust,25/06/18,NURSE - BAND 5 - AGENCY,Phoenix Ward (HPC),HCL NURSING,MAN28037,320.14
Department of Health,Leicestershire Partnership NHS Trust,25/06/18,NURSE - BAND 2 - AGENCY,Sycamore (Willows),HCL NURSING,MAN28037,336.82
Department of Health,Leicestershire Partnership NHS Trust,25/06/18,NURSE - BAND 5 - AGENCY,Thornton Ward - Bradgate Unit,HCL NURSING,MAN28037,1207.05
Department of Health,Leicestershire Partnership NHS Trust,25/06/18,NURSE - BAND 2 - AGENCY,Watermead Ward (Bradgate Unit),HCL NURSING,MAN28037,175.41
Department of Health,Leicestershire Partnership NHS Trust,25/06/18,NURSE - BAND 5 - AGENCY,Watermead Ward (Bradgate Unit),HCL NURSING,MAN28037,700.66
Department of Health,Leicestershire Partnership NHS Trust,26/06/18,Rent,NSPCC Training Cente,NSPCC,117072,28054.56
Department of Health,Leicestershire Partnership NHS Trust,26/06/18,NURSE - BAND 2 - AGENCY,Beechwood Ward,HCL NURSING,MAN27973,1594.97
Department of Health,Leicestershire Partnership NHS Trust,26/06/18,Nurse - Band 6 -Agency,City East CMHT MHSOP,HCL NURSING,MAN27973,1046.16
Department of Health,Leicestershire Partnership NHS Trust,26/06/18,NURSE - BAND 5 - AGENCY,City ICS,HCL NURSING,MAN27973,4591.94
Department of Health,Leicestershire Partnership NHS Trust,26/06/18,NURSE - BAND 5 - AGENCY,City Planned Care - East,HCL NURSING,MAN27973,14714.80
Department of Health,Leicestershire Partnership NHS Trust,26/06/18,NURSE - BAND 3 - AGENCY,City Planned Care - West,HCL NURSING,MAN27973,510.65
Department of Health,Leicestershire Partnership NHS Trust,26/06/18,NURSE - BAND 5 - AGENCY,City Planned Care - West,HCL NURSING,MAN27973,5208.96
Department of Health,Leicestershire Partnership NHS Trust,26/06/18,Nurse - Band 6 -Agency,City West CMHT MHSOP,HCL NURSING,MAN27973,983.41
Department of Health,Leicestershire Partnership NHS Trust,26/06/18,NURSE - BAND 2 - AGENCY,Clarendon Ward,HCL NURSING,MAN27973,434.17
Department of Health,Leicestershire Partnership NHS Trust,26/06/18,NURSE - BAND 5 - AGENCY,Clarendon Ward,HCL NURSING,MAN27973,1359.82
Department of Health,Leicestershire Partnership NHS Trust,26/06/18,NURSE - BAND 2 - AGENCY,Coalville Snibston Ward,HCL NURSING,MAN27973,1265.96
Department of Health,Leicestershire Partnership NHS Trust,26/06/18,NURSE - BAND 5 - AGENCY,Coleman Ward,HCL NURSING,MAN27973,302.58
Department of Health,Leicestershire Partnership NHS Trust,26/06/18,NURSE - BAND 2 - AGENCY,Dalgliesh Ward,HCL NURSING,MAN27973,206.42
Department of Health,Leicestershire Partnership NHS Trust,26/06/18,NURSE - BAND 5 - AGENCY,"East Planned Care - Melton,Syston,Rutland",HCL NURSING,MAN27973,8954.42
Department of Health,Leicestershire Partnership NHS Trust,26/06/18,NURSE - BAND 3 - AGENCY,"East Planned Care - Oadby,Wigston & Harborough",HCL NURSING,MAN27973,595.37
Department of Health,Leicestershire Partnership NHS Trust,26/06/18,NURSE - BAND 5 - AGENCY,"East Planned Care - Oadby,Wigston & Harborough",HCL NURSING,MAN27973,186.46
Department of Health,Leicestershire Partnership NHS Trust,26/06/18,NURSE - BAND 5 - AGENCY,Evening Service,HCL NURSING,MAN27973,1132.62
Department of Health,Leicestershire Partnership NHS Trust,26/06/18,NURSE - BAND 2 - AGENCY,Fielding Palmer Nursing,HCL NURSING,MAN27973,322.73
Department of Health,Leicestershire Partnership NHS Trust,26/06/18,NURSE - BAND 5 - AGENCY,Fielding Palmer Nursing,HCL NURSING,MAN27973,2098.88
Department of Health,Leicestershire Partnership NHS Trust,26/06/18,NURSE - BAND 2 - AGENCY,Gwendolen Ward,HCL NURSING,MAN27973,2036.56
Department of Health,Leicestershire Partnership NHS Trust,26/06/18,NURSE - BAND 5 - AGENCY,Gwendolen Ward,HCL NURSING,MAN27973,302.58
Department of Health,Leicestershire Partnership NHS Trust,26/06/18,NURSE - BAND 2 - AGENCY,H&B Comm Hosp East Ward,HCL NURSING,MAN27973,1772.66
Department of Health,Leicestershire Partnership NHS Trust,26/06/18,NURSE - BAND 2 - AGENCY,H&B Comm Hosp North Ward,HCL NURSING,MAN27973,1489.31
Department of Health,Leicestershire Partnership NHS Trust,26/06/18,NURSE - BAND 5 - AGENCY,H&B Comm Hosp North Ward,HCL NURSING,MAN27973,659.63
Department of Health,Leicestershire Partnership NHS Trust,26/06/18,NURSE - BAND 2 - AGENCY,Kirby Ward,HCL NURSING,MAN27973,194.67
Department of Health,Leicestershire Partnership NHS Trust,26/06/18,NURSE - BAND 5 - AGENCY,Kirby Ward,HCL NURSING,MAN27973,306.60
Department of Health,Leicestershire Partnership NHS Trust,26/06/18,NURSE - BAND 2 - AGENCY,Lough Swithland Ward,HCL NURSING,MAN27973,164.46
Department of Health,Leicestershire Partnership NHS Trust,26/06/18,Nurse - Band 6 -Agency,MHSOP Integrated Care Team,HCL NURSING,MAN27973,1883.09
Department of Health,Leicestershire Partnership NHS Trust,26/06/18,NURSE - BAND 5 - AGENCY,North East ICS,HCL NURSING,MAN27973,1574.70
Department of Health,Leicestershire Partnership NHS Trust,26/06/18,NURSE - BAND 5 - AGENCY,North West ICS,HCL NURSING,MAN27973,621.09
Department of Health,Leicestershire Partnership NHS Trust,26/06/18,NURSE - BAND 2 - AGENCY,Rutland Ward Nursing,HCL NURSING,MAN27973,106.77
Department of Health,Leicestershire Partnership NHS Trust,26/06/18,NURSE - BAND 5 - AGENCY,South East ICS,HCL NURSING,MAN27973,3381.44
Department of Health,Leicestershire Partnership NHS Trust,26/06/18,NURSE - BAND 2 - AGENCY,St Lukes Stroke Ward,HCL NURSING,MAN27973,615.66
Department of Health,Leicestershire Partnership NHS Trust,26/06/18,NURSE - BAND 2 - AGENCY,St Lukes Ward 3,HCL NURSING,MAN27973,239.57
Department of Health,Leicestershire Partnership NHS Trust,26/06/18,NURSE - BAND 5 - AGENCY,St Lukes Ward 3,HCL NURSING,MAN27973,669.77
Department of Health,Leicestershire Partnership NHS Trust,26/06/18,NURSE - BAND 2 - AGENCY,Welford Ward,HCL NURSING,MAN27973,194.67
Department of Health,Leicestershire Partnership NHS Trust,26/06/18,NURSE - BAND 5 - AGENCY,Welford Ward,HCL NURSING,MAN27973,326.24
Department of Health,Leicestershire Partnership NHS Trust,26/06/18,NURSE - BAND 3 - AGENCY,West Planned Care  - Charnwood Hub,HCL NURSING,MAN27973,643.68
Department of Health,Leicestershire Partnership NHS Trust,26/06/18,NURSE - BAND 5 - AGENCY,West Planned Care  - Charnwood Hub,HCL NURSING,MAN27973,3425.66
Department of Health,Leicestershire Partnership NHS Trust,26/06/18,NURSE - BAND 5 - AGENCY,West Planned Care - NWL Hub,HCL NURSING,MAN27973,-51.12
Department of Health,Leicestershire Partnership NHS Trust,27/06/18,NURSE - BAND 2 - AGENCY,Beechwood Ward,HCL NURSING,MAN28002,1066.18
Department of Health,Leicestershire Partnership NHS Trust,27/06/18,NURSE - BAND 5 - AGENCY,Beechwood Ward,HCL NURSING,MAN28002,386.06
Department of Health,Leicestershire Partnership NHS Trust,27/06/18,Nurse - Band 6 -Agency,City East CMHT MHSOP,HCL NURSING,MAN28002,836.93
Department of Health,Leicestershire Partnership NHS Trust,27/06/18,NURSE - BAND 5 - AGENCY,City ICS,HCL NURSING,MAN28002,2915.31
Department of Health,Leicestershire Partnership NHS Trust,27/06/18,NURSE - BAND 5 - AGENCY,City Planned Care - East,HCL NURSING,MAN28002,7196.79
Department of Health,Leicestershire Partnership NHS Trust,27/06/18,NURSE - BAND 3 - AGENCY,City Planned Care - West,HCL NURSING,MAN28002,960.93
Department of Health,Leicestershire Partnership NHS Trust,27/06/18,NURSE - BAND 5 - AGENCY,City Planned Care - West,HCL NURSING,MAN28002,4666.64
Department of Health,Leicestershire Partnership NHS Trust,27/06/18,Nurse - Band 6 -Agency,City West CMHT MHSOP,HCL NURSING,MAN28002,1158.46
Department of Health,Leicestershire Partnership NHS Trust,27/06/18,NURSE - BAND 2 - AGENCY,Clarendon Ward,HCL NURSING,MAN28002,239.57
Department of Health,Leicestershire Partnership NHS Trust,27/06/18,NURSE - BAND 2 - AGENCY,Coalville Snibston Ward,HCL NURSING,MAN28002,574.27
Department of Health,Leicestershire Partnership NHS Trust,27/06/18,NURSE - BAND 2 - AGENCY,Coalville Ward 2,HCL NURSING,MAN28002,583.30
Department of Health,Leicestershire Partnership NHS Trust,27/06/18,NURSE - BAND 2 - AGENCY,Coleman Ward,HCL NURSING,MAN28002,291.20
Department of Health,Leicestershire Partnership NHS Trust,27/06/18,NURSE - BAND 5 - AGENCY,Dalgliesh Ward,HCL NURSING,MAN28002,659.63
Department of Health,Leicestershire Partnership NHS Trust,27/06/18,NURSE - BAND 5 - AGENCY,"East Planned Care - Melton,Syston,Rutland",HCL NURSING,MAN28002,3529.69
Department of Health,Leicestershire Partnership NHS Trust,27/06/18,NURSE - BAND 3 - AGENCY,"East Planned Care - Oadby,Wigston & Harborough",HCL NURSING,MAN28002,583.76
Department of Health,Leicestershire Partnership NHS Trust,27/06/18,NURSE - BAND 5 - AGENCY,"East Planned Care - Oadby,Wigston & Harborough",HCL NURSING,MAN28002,270.82
Department of Health,Leicestershire Partnership NHS Trust,27/06/18,NURSE - BAND 5 - AGENCY,Evening Service,HCL NURSING,MAN28002,489.83
Department of Health,Leicestershire Partnership NHS Trust,27/06/18,NURSE - BAND 2 - AGENCY,Fielding Palmer Nursing,HCL NURSING,MAN28002,94.95
Department of Health,Leicestershire Partnership NHS Trust,27/06/18,NURSE - BAND 5 - AGENCY,Fielding Palmer Nursing,HCL NURSING,MAN28002,3277.77
Department of Health,Leicestershire Partnership NHS Trust,27/06/18,NURSE - BAND 2 - AGENCY,Gwendolen Ward,HCL NURSING,MAN28002,2458.78
Department of Health,Leicestershire Partnership NHS Trust,27/06/18,NURSE - BAND 5 - AGENCY,Gwendolen Ward,HCL NURSING,MAN28002,282.94
Department of Health,Leicestershire Partnership NHS Trust,27/06/18,NURSE - BAND 2 - AGENCY,H&B Comm Hosp East Ward,HCL NURSING,MAN28002,451.50
Department of Health,Leicestershire Partnership NHS Trust,27/06/18,NURSE - BAND 2 - AGENCY,H&B Comm Hosp North Ward,HCL NURSING,MAN28002,2064.14
Department of Health,Leicestershire Partnership NHS Trust,27/06/18,NURSE - BAND 5 - AGENCY,H&B Comm Hosp North Ward,HCL NURSING,MAN28002,224.79
Department of Health,Leicestershire Partnership NHS Trust,27/06/18,NURSE - BAND 2 - AGENCY,Kirby Ward,HCL NURSING,MAN28002,641.05
Department of Health,Leicestershire Partnership NHS Trust,27/06/18,NURSE - BAND 5 - AGENCY,North East ICS,HCL NURSING,MAN28002,256.71
Department of Health,Leicestershire Partnership NHS Trust,27/06/18,NURSE - BAND 5 - AGENCY,North West ICS,HCL NURSING,MAN28002,1378.42
Department of Health,Leicestershire Partnership NHS Trust,27/06/18,NURSE - BAND 5 - AGENCY,South East ICS,HCL NURSING,MAN28002,6882.57
Department of Health,Leicestershire Partnership NHS Trust,27/06/18,NURSE - BAND 2 - AGENCY,St Lukes Stroke Ward,HCL NURSING,MAN28002,211.93
Department of Health,Leicestershire Partnership NHS Trust,27/06/18,NURSE - BAND 5 - AGENCY,St Lukes Stroke Ward,HCL NURSING,MAN28002,370.38
Department of Health,Leicestershire Partnership NHS Trust,27/06/18,NURSE - BAND 2 - AGENCY,St Lukes Ward 3,HCL NURSING,MAN28002,423.87
Department of Health,Leicestershire Partnership NHS Trust,27/06/18,NURSE - BAND 5 - AGENCY,St Lukes Ward 3,HCL NURSING,MAN28002,1121.44
Department of Health,Leicestershire Partnership NHS Trust,27/06/18,NURSE - BAND 2 - AGENCY,Welford Ward,HCL NURSING,MAN28002,538.57
Department of Health,Leicestershire Partnership NHS Trust,27/06/18,NURSE - BAND 5 - AGENCY,Welford Ward,HCL NURSING,MAN28002,268.76
Department of Health,Leicestershire Partnership NHS Trust,27/06/18,NURSE - BAND 3 - AGENCY,West Planned Care  - Charnwood Hub,HCL NURSING,MAN28002,521.48
Department of Health,Leicestershire Partnership NHS Trust,27/06/18,NURSE - BAND 5 - AGENCY,West Planned Care  - Charnwood Hub,HCL NURSING,MAN28002,2838.21
Department of Health,Leicestershire Partnership NHS Trust,27/06/18,NURSE - BAND 2 - AGENCY,Beechwood Ward,HCL NURSING,MAN28038,451.50
Department of Health,Leicestershire Partnership NHS Trust,27/06/18,NURSE - BAND 5 - AGENCY,Beechwood Ward,HCL NURSING,MAN28038,340.76
Department of Health,Leicestershire Partnership NHS Trust,27/06/18,Nurse - Band 6 -Agency,City East CMHT MHSOP,HCL NURSING,MAN28038,836.93
Department of Health,Leicestershire Partnership NHS Trust,27/06/18,NURSE - BAND 5 - AGENCY,City ICS,HCL NURSING,MAN28038,4040.27
Department of Health,Leicestershire Partnership NHS Trust,27/06/18,NURSE - BAND 5 - AGENCY,City Planned Care - East,HCL NURSING,MAN28038,6474.61
Department of Health,Leicestershire Partnership NHS Trust,27/06/18,NURSE - BAND 3 - AGENCY,City Planned Care - West,HCL NURSING,MAN28038,664.14
Department of Health,Leicestershire Partnership NHS Trust,27/06/18,NURSE - BAND 5 - AGENCY,City Planned Care - West,HCL NURSING,MAN28038,3993.29
Department of Health,Leicestershire Partnership NHS Trust,27/06/18,Nurse - Band 6 -Agency,City West CMHT MHSOP,HCL NURSING,MAN28038,1069.88
Department of Health,Leicestershire Partnership NHS Trust,27/06/18,NURSE - BAND 2 - AGENCY,Clarendon Ward,HCL NURSING,MAN28038,211.93
Department of Health,Leicestershire Partnership NHS Trust,27/06/18,NURSE - BAND 5 - AGENCY,Clarendon Ward,HCL NURSING,MAN28038,393.35
Department of Health,Leicestershire Partnership NHS Trust,27/06/18,NURSE - BAND 2 - AGENCY,Coalville Snibston Ward,HCL NURSING,MAN28038,223.60
Department of Health,Leicestershire Partnership NHS Trust,27/06/18,NURSE - BAND 2 - AGENCY,Coalville Ward 2,HCL NURSING,MAN28038,707.76
Department of Health,Leicestershire Partnership NHS Trust,27/06/18,NURSE - BAND 5 - AGENCY,Coleman Ward,HCL NURSING,MAN28038,290.27
Department of Health,Leicestershire Partnership NHS Trust,27/06/18,NURSE - BAND 2 - AGENCY,Dalgliesh Ward,HCL NURSING,MAN28038,238.88
Department of Health,Leicestershire Partnership NHS Trust,27/06/18,NURSE - BAND 5 - AGENCY,"East Planned Care - Melton,Syston,Rutland",HCL NURSING,MAN28038,2242.89
Department of Health,Leicestershire Partnership NHS Trust,27/06/18,NURSE - BAND 3 - AGENCY,"East Planned Care - Oadby,Wigston & Harborough",HCL NURSING,MAN28038,274.75
Department of Health,Leicestershire Partnership NHS Trust,27/06/18,NURSE - BAND 5 - AGENCY,Evening Service,HCL NURSING,MAN28038,725.94
Department of Health,Leicestershire Partnership NHS Trust,27/06/18,NURSE - BAND 2 - AGENCY,Fielding Palmer Nursing,HCL NURSING,MAN28038,94.95
Department of Health,Leicestershire Partnership NHS Trust,27/06/18,NURSE - BAND 5 - AGENCY,Fielding Palmer Nursing,HCL NURSING,MAN28038,1669.15
Department of Health,Leicestershire Partnership NHS Trust,27/06/18,NURSE - BAND 2 - AGENCY,Gwendolen Ward,HCL NURSING,MAN28038,1808.19
Department of Health,Leicestershire Partnership NHS Trust,27/06/18,NURSE - BAND 5 - AGENCY,Gwendolen Ward,HCL NURSING,MAN28038,1085.95
Department of Health,Leicestershire Partnership NHS Trust,27/06/18,NURSE - BAND 2 - AGENCY,H&B Comm Hosp East Ward,HCL NURSING,MAN28038,654.46
Department of Health,Leicestershire Partnership NHS Trust,27/06/18,NURSE - BAND 2 - AGENCY,H&B Comm Hosp North Ward,HCL NURSING,MAN28038,878.91
Department of Health,Leicestershire Partnership NHS Trust,27/06/18,NURSE - BAND 5 - AGENCY,H&B Comm Hosp North Ward,HCL NURSING,MAN28038,386.06
Department of Health,Leicestershire Partnership NHS Trust,27/06/18,Nurse - Band 6 -Agency,MHSOP Integrated Care Team,HCL NURSING,MAN28038,1046.16
Department of Health,Leicestershire Partnership NHS Trust,27/06/18,NURSE - BAND 5 - AGENCY,North West ICS,HCL NURSING,MAN28038,705.59
Department of Health,Leicestershire Partnership NHS Trust,27/06/18,NURSE - BAND 5 - AGENCY,Rutland Ward Nursing,HCL NURSING,MAN28038,681.51
Department of Health,Leicestershire Partnership NHS Trust,27/06/18,NURSE - BAND 5 - AGENCY,South East ICS,HCL NURSING,MAN28038,7194.96
Department of Health,Leicestershire Partnership NHS Trust,27/06/18,NURSE - BAND 2 - AGENCY,St Lukes Stroke Ward,HCL NURSING,MAN28038,677.19
Department of Health,Leicestershire Partnership NHS Trust,27/06/18,NURSE - BAND 2 - AGENCY,St Lukes Ward 3,HCL NURSING,MAN28038,713.47
Department of Health,Leicestershire Partnership NHS Trust,27/06/18,NURSE - BAND 5 - AGENCY,St Lukes Ward 3,HCL NURSING,MAN28038,2989.20
Department of Health,Leicestershire Partnership NHS Trust,27/06/18,NURSE - BAND 2 - AGENCY,Welford Ward,HCL NURSING,MAN28038,405.18
Department of Health,Leicestershire Partnership NHS Trust,27/06/18,NURSE - BAND 5 - AGENCY,Welford Ward,HCL NURSING,MAN28038,361.19
Department of Health,Leicestershire Partnership NHS Trust,27/06/18,NURSE - BAND 3 - AGENCY,West Planned Care  - Charnwood Hub,HCL NURSING,MAN28038,457.91
Department of Health,Leicestershire Partnership NHS Trust,27/06/18,NURSE - BAND 5 - AGENCY,West Planned Care  - Charnwood Hub,HCL NURSING,MAN28038,2434.99
Department of Health,Leicestershire Partnership NHS Trust,27/06/18,NURSE - BAND 5 - AGENCY,West Planned Care - NWL Hub,HCL NURSING,MAN28038,186.02
Department of Health,Leicestershire Partnership NHS Trust,27/06/18,Leased / Hired Vehicles,Autism,AUTOMOTIVE LEASING LTD,503977008,1277.92
Department of Health,Leicestershire Partnership NHS Trust,27/06/18,Prep_ LT1y -Prepayments Lease Cars,Balance Sheet Collection,AUTOMOTIVE LEASING LTD,503977008,70645.20
Department of Health,Leicestershire Partnership NHS Trust,27/06/18,Trade_Drs_LT1y -Lease Cars Invoicing Contrl Ac.,Balance Sheet Collection,AUTOMOTIVE LEASING LTD,503977008,701.13
Department of Health,Leicestershire Partnership NHS Trust,27/06/18,Leased / Hired Vehicles,City Community Therapy,AUTOMOTIVE LEASING LTD,503977008,75.48
Department of Health,Leicestershire Partnership NHS Trust,27/06/18,Leased / Hired Vehicles,County 0-19  Market Harborough SN,AUTOMOTIVE LEASING LTD,503977008,235.00
Department of Health,Leicestershire Partnership NHS Trust,27/06/18,Leased / Hired Vehicles,County 0-19 Hinckley & Bosworth HV,AUTOMOTIVE LEASING LTD,503977008,284.00
Department of Health,Leicestershire Partnership NHS Trust,27/06/18,Leased / Hired Vehicles,County 0-19 Oadby & Wigston HV,AUTOMOTIVE LEASING LTD,503977008,973.18
Department of Health,Leicestershire Partnership NHS Trust,27/06/18,Leased / Hired Vehicles,Crisis Response and Home Treatment,AUTOMOTIVE LEASING LTD,503977008,240.05
Department of Health,Leicestershire Partnership NHS Trust,27/06/18,Leased / Hired Vehicles,Deliberate Self Harm,AUTOMOTIVE LEASING LTD,503977008,581.00
Department of Health,Leicestershire Partnership NHS Trust,27/06/18,Leased / Hired Vehicles,East Planned Care - Blaby/Lutterworth,AUTOMOTIVE LEASING LTD,503977008,1522.00
Department of Health,Leicestershire Partnership NHS Trust,27/06/18,Leased / Hired Vehicles,"East Planned Care - Oadby,Wigston & Harborough",AUTOMOTIVE LEASING LTD,503977008,971.00
Department of Health,Leicestershire Partnership NHS Trust,27/06/18,Leased / Hired Vehicles,HIS,AUTOMOTIVE LEASING LTD,503977008,683.12
Department of Health,Leicestershire Partnership NHS Trust,27/06/18,Leased / Hired Vehicles,Hospice at Home,AUTOMOTIVE LEASING LTD,503977008,1012.50
Department of Health,Leicestershire Partnership NHS Trust,27/06/18,Leased / Hired Vehicles,North East ICS,AUTOMOTIVE LEASING LTD,503977008,120.00
Department of Health,Leicestershire Partnership NHS Trust,27/06/18,Leased / Hired Vehicles,South West ICS,AUTOMOTIVE LEASING LTD,503977008,10.00
Department of Health,Leicestershire Partnership NHS Trust,27/06/18,Leased / Hired Vehicles,Speech & Language Therapy,AUTOMOTIVE LEASING LTD,503977008,804.30
Department of Health,Leicestershire Partnership NHS Trust,27/06/18,Leased / Hired Vehicles,Stewart House,AUTOMOTIVE LEASING LTD,503977008,531.44
Department of Health,Leicestershire Partnership NHS Trust,27/06/18,Leased / Hired Vehicles,West Planned Care  - Charnwood Hub,AUTOMOTIVE LEASING LTD,503977008,510.48
Department of Health,Leicestershire Partnership NHS Trust,27/06/18,Leased / Hired Vehicles,West Planned Care  - Hinckley Hub,AUTOMOTIVE LEASING LTD,503977008,86.00
Department of Health,Leicestershire Partnership NHS Trust,27/06/18,Med GP Trainees,Medical Trainees,ST.HELENS & KNOWSLEY NHS TRUST,16775958,60000.00
Department of Health,Leicestershire Partnership NHS Trust,28/06/18,OCCUPATIONAL THERAPIST - AGENCY,Adult City West CMHT - BHSCC,MSI RECRUITMENT,MSIR150618,762.81
Department of Health,Leicestershire Partnership NHS Trust,28/06/18,PHYSIOTHERAPY - AGENCY,City Community Therapy,MSI RECRUITMENT,MSIR150618,2507.82
Department of Health,Leicestershire Partnership NHS Trust,28/06/18,PHYSIOTHERAPY - AGENCY,City ICS,MSI RECRUITMENT,MSIR150618,1528.13
Department of Health,Leicestershire Partnership NHS Trust,28/06/18,PHYSIOTHERAPY - AGENCY,Coalville Snibston Ward,MSI RECRUITMENT,MSIR150618,3072.95
Department of Health,Leicestershire Partnership NHS Trust,28/06/18,PODIATRIST - AGENCY,County Podiatry Service,MSI RECRUITMENT,MSIR150618,3739.10
Department of Health,Leicestershire Partnership NHS Trust,28/06/18,PHYSIOTHERAPY - AGENCY,East Community Therapy,MSI RECRUITMENT,MSIR150618,1258.68
Department of Health,Leicestershire Partnership NHS Trust,28/06/18,PHYSIOTHERAPY - AGENCY,Integrated Care Service - Rutland,MSI RECRUITMENT,MSIR150618,2293.19
Department of Health,Leicestershire Partnership NHS Trust,28/06/18,OCCUPATIONAL THERAPIST - AGENCY,MHSOP Community Therapy,MSI RECRUITMENT,MSIR150618,1294.86
Department of Health,Leicestershire Partnership NHS Trust,28/06/18,OCCUPATIONAL THERAPIST - AGENCY,MHSOP Inpatient Therapy - Evington,MSI RECRUITMENT,MSIR150618,629.32
Department of Health,Leicestershire Partnership NHS Trust,28/06/18,Professional & Technical Agency,Medical & Neuro Psychology Services,MSI RECRUITMENT,MSIR150618,5933.30
Department of Health,Leicestershire Partnership NHS Trust,28/06/18,OCCUPATIONAL THERAPIST - AGENCY,South East ICS,MSI RECRUITMENT,MSIR150618,755.21
Department of Health,Leicestershire Partnership NHS Trust,28/06/18,SALT - AGENCY,Speech & Language Therapy,MSI RECRUITMENT,MSIR150618,3207.85
Department of Health,Leicestershire Partnership NHS Trust,28/06/18,OCCUPATIONAL THERAPIST - AGENCY,St Lukes Stroke Ward,MSI RECRUITMENT,MSIR150618,469.90
Department of Health,Leicestershire Partnership NHS Trust,28/06/18,OCCUPATIONAL THERAPIST - AGENCY,St Lukes Ward 3,MSI RECRUITMENT,MSIR150618,234.95
Department of Health,Leicestershire Partnership NHS Trust,28/06/18,Professional & Technical Agency,Adult City East CMHT - Merlyn Vaz,MSI RECRUITMENT,MSIR010618,5545.19
Department of Health,Leicestershire Partnership NHS Trust,28/06/18,OCCUPATIONAL THERAPIST - AGENCY,Adult City West CMHT - BHSCC,MSI RECRUITMENT,MSIR010618,806.42
Department of Health,Leicestershire Partnership NHS Trust,28/06/18,PHYSIOTHERAPY - AGENCY,City Community Therapy,MSI RECRUITMENT,MSIR010618,1652.75
Department of Health,Leicestershire Partnership NHS Trust,28/06/18,PHYSIOTHERAPY - AGENCY,City ICS,MSI RECRUITMENT,MSIR010618,2310.88
Department of Health,Leicestershire Partnership NHS Trust,28/06/18,PHYSIOTHERAPY - AGENCY,Coalville Snibston Ward,MSI RECRUITMENT,MSIR010618,1762.15
Department of Health,Leicestershire Partnership NHS Trust,28/06/18,PHYSIOTHERAPY - AGENCY,Coalville Ward 2,MSI RECRUITMENT,MSIR010618,640.87
Department of Health,Leicestershire Partnership NHS Trust,28/06/18,PODIATRIST - AGENCY,County Podiatry Service,MSI RECRUITMENT,MSIR010618,3624.94
Department of Health,Leicestershire Partnership NHS Trust,28/06/18,PHYSIOTHERAPY - AGENCY,East Community Therapy,MSI RECRUITMENT,MSIR010618,2351.48
Department of Health,Leicestershire Partnership NHS Trust,28/06/18,OCCUPATIONAL THERAPIST - AGENCY,MHSOP Community Therapy,MSI RECRUITMENT,MSIR010618,604.99
Department of Health,Leicestershire Partnership NHS Trust,28/06/18,OCCUPATIONAL THERAPIST - AGENCY,MHSOP Inpatient Therapy - Evington,MSI RECRUITMENT,MSIR010618,632.34
Department of Health,Leicestershire Partnership NHS Trust,28/06/18,Professional & Technical Agency,Medical & Neuro Psychology Services,MSI RECRUITMENT,MSIR010618,2460.13
Department of Health,Leicestershire Partnership NHS Trust,28/06/18,PHYSIOTHERAPY - AGENCY,Mental Health Physical Nurse Team,MSI RECRUITMENT,MSIR010618,1292.70
Department of Health,Leicestershire Partnership NHS Trust,28/06/18,OCCUPATIONAL THERAPIST - AGENCY,South East ICS,MSI RECRUITMENT,MSIR010618,2332.73
Department of Health,Leicestershire Partnership NHS Trust,28/06/18,SALT - AGENCY,Speech & Language Therapy,MSI RECRUITMENT,MSIR010618,523.31
Department of Health,Leicestershire Partnership NHS Trust,28/06/18,OCCUPATIONAL THERAPIST - AGENCY,St Lukes Stroke Ward,MSI RECRUITMENT,MSIR010618,755.21
